[Event "FIDE Online Olympiad Div 2 Pool A 2020"]
[Site "Online"]
[Date "2020.08.15"]
[Round "1"]
[White "Wagner, Dennis"]
[Black "Reefat, Bin-Sattar"]
[Result "1/2-1/2"]
[ECO "D17"]
[WhiteElo "2178"]
[BlackElo "1975"]
[Annotator "broadcasts"]
[PlyCount "80"]
[EventDate "2020.08.14"]
[EventType "team-tourn"]
[TimeControl "900+5"]

1. d4 {[%emt 0:00:05]} d5 {[%emt 0:00:07]} 2. c4 {[%emt 0:00:05]} c6 {[%emt 0:00:03]} 3. Nf3 {[%emt 0:00:03]} Nf6 {[%emt 0:00:02]} 4. Nc3 {[%emt 0:00:01]} dxc4 {[%emt 0:00:10]} 5. a4 {[%emt 0:00:05]} Bf5 {[%emt 0:00:03]} 6. Ne5 {[%emt 0:00:02]} Nbd7 {[%emt 0:00:04]} 7. Nxc4 {[%emt 0:00:03]} Nb6 {[%emt 0:00:05]} 8. Ne5 {[%emt 0:00:02]} a5 {[%emt 0:00:02]} 9. h4 {[%emt 0:00:14]} h6 {[%emt 0:00:16]} 10. f3 {[%emt 0:00:24]} Nfd7 {[%emt 0:01:00]} 11. Nxd7 {[%emt 0:01:58]} Nxd7 {[%emt 0:00:05]} 12. e4 {[%emt 0:00:02]} Bh7 {[%emt 0:00:02]} 13. Bc4 {[%emt 0:01:17]} Qb6 {[%emt 0:00:08]} 14. Qb3 {[%emt 0:01:06]} Qxb3 {[%emt 0:00:13]} 15. Bxb3 {[%emt 0:00:01]} e5 {[%emt 0:01:01]} 16. dxe5 {[%emt 0:00:08]} Nxe5 {[%emt 0:00:06]} 17. Ke2 {[%emt 0:00:39]} Bc5 {[%emt 0:00:19]} 18. Bf4 {[%emt 0:00:34]} f6 {[%emt 0:00:07]} 19. h5 {[%emt 0:02:24]} Bg8 {[%emt 0:02:52]} 20. Bxg8 {[%emt 0:00:05]} Rxg8 {[%emt 0:00:03]} 21. Rad1 {[%emt 0:00:45]} Ke7 {[%emt 0:00:07]} 22. b3 {[%emt 0:00:33]} Rgd8 {[%emt 0:00:11]} 23. Be3 {[%emt 0:01:26]} Bxe3 {[%emt 0:00:10]} 24. Kxe3 {[%emt 0:00:00]} Nd7 {[%emt 0:00:26]} 25. Ne2 {[%emt 0:00:19]} Nc5 {[%emt 0:00:03]} 26. Nd4 {[%emt 0:00:41]} Kf7 {[%emt 0:00:04]} 27. Rd2 {[%emt 0:01:55]} Rd6 {[%emt 0:03:01]} 28. Rhd1 {[%emt 0:00:27]} Kf8 {[%emt 0:00:53]} 29. g4 {[%emt 0:00:54]} Re8 {[%emt 0:00:31]} 30. Nf5 {[%emt 0:00:58]} Rde6 {[%emt 0:01:09]} 31. Rc2 {[%emt 0:00:10]} b6 {[%emt 0:00:16]} 32. Rc3 {[%emt 0:00:01]} Rc8 {[%emt 0:00:07]} 33. Rd6 {[%emt 0:00:02]} Rc7 {[%emt 0:00:33]} 34. Rd8+ {[%emt 0:00:06]} Kf7 {[%emt 0:00:12]} 35. Rb8 {[%emt 0:00:04]} Nd7 {[%emt 0:00:04]} 36. Ra8 {[%emt 0:00:02]} Nc5 {[%emt 0:00:06]} 37. Rb8 {[%emt 0:00:02]} Nd7 {[%emt 0:00:03]} 38. Ra8 {[%emt 0:00:02]} Nc5 {[%emt 0:00:08]} 39. Rc1 {[%emt 0:00:08]} Rd7 {[%emt 0:00:06]} 40. Rc3 {[%emt 0:00:05]} Rc7 {[%emt 0:00:02]} 1/2-1/2

[Event "FIDE Online Olympiad Div 2 Pool A 2020"]
[Site "Online"]
[Date "2020.08.15"]
[Round "1"]
[White "Schulze, Lara"]
[Black "Hamid, Rani"]
[Result "1-0"]
[ECO "B54"]
[WhiteElo "2070"]
[BlackElo "1692"]
[Annotator "broadcasts"]
[PlyCount "85"]
[EventDate "2020.08.14"]
[EventType "team-tourn"]
[TimeControl "900+5"]

1. e4 {[%emt 0:00:11]} c5 {[%emt 0:00:04]} 2. Nf3 {[%emt 0:00:04]} e6 {[%emt 0:00:03]} 3. d4 {[%emt 0:00:06]} cxd4 {[%emt 0:00:04]} 4. Nxd4 {[%emt 0:00:01]} a6 {[%emt 0:00:02]} 5. c4 {[%emt 0:00:03]} Nf6 {[%emt 0:00:03]} 6. Nc3 {[%emt 0:00:02]} d6 {[%emt 0:00:06]} 7. Be2 {[%emt 0:00:03]} Be7 {[%emt 0:00:03]} 8. O-O {[%emt 0:00:09]} O-O {[%emt 0:00:03]} 9. Be3 {[%emt 0:00:02]} Nc6 {[%emt 0:00:12]} 10. a3 {[%emt 0:00:22]} Bd7 {[%emt 0:00:23]} 11. b4 {[%emt 0:00:43]} Nxd4 {[%emt 0:00:52]} 12. Qxd4 {[%emt 0:00:05]} e5 {[%emt 0:00:14]} 13. Qd3 {[%emt 0:00:35]} Be6 {[%emt 0:00:25]} 14. Rac1 {[%emt 0:00:36]} Rc8 {[%emt 0:00:25]} 15. Nd5 {[%emt 0:00:03]} Bxd5 {[%emt 0:01:06]} 16. exd5 {[%emt 0:00:05]} Qd7 {[%emt 0:00:53]} 17. f3 {[%emt 0:00:40]} Nh5 {[%emt 0:01:32]} 18. Qd2 {[%emt 0:01:01]} f5 {[%emt 0:00:13]} 19. c5 {[%emt 0:02:02]} f4 {[%emt 0:00:32]} 20. Bf2 {[%emt 0:00:06]} Nf6 {[%emt 0:01:11]} 21. c6 {[%emt 0:02:19]} bxc6 {[%emt 0:02:03]} 22. Bxa6 {[%emt 0:00:18]} Nxd5 {[%emt 0:00:05]} 23. Bxc8 {[%emt 0:02:51]} Rxc8 {[%emt 0:00:05]} 24. b5 {[%emt 0:00:07]} Nf6 {[%emt 0:01:47]} 25. bxc6 {[%emt 0:00:35]} Rxc6 {[%emt 0:00:08]} 26. Rxc6 {[%emt 0:00:05]} Qxc6 {[%emt 0:00:02]} 27. Rc1 {[%emt 0:00:01]} Qa6 {[%emt 0:02:32]} 28. Qb4 {[%emt 0:00:16]} h6 {[%emt 0:00:13]} 29. h4 {[%emt 0:00:55]} Kf8 {[%emt 0:00:23]} 30. a4 {[%emt 0:01:28]} Qd3 {[%emt 0:00:15]} 31. Qc4 {[%emt 0:00:55]} Qa3 {[%emt 0:00:10]} 32. Rb1 {[%emt 0:00:11]} d5 {[%emt 0:00:05]} 33. Qc8+ {[%emt 0:00:06]} Kf7 {[%emt 0:00:04]} 34. Rb7 {[%emt 0:00:09]} d4 {[%emt 0:00:05]} 35. Qc4+ {[%emt 0:00:07]} Kg6 {[%emt 0:00:07]} 36. Qc2+ {[%emt 0:00:12]} d3 {[%emt 0:00:22]} 37. Qd1 {[%emt 0:00:07]} Nd5 {[%emt 0:00:10]} 38. Rb3 {[%emt 0:00:05]} Qd6 {[%emt 0:00:33]} 39. Rxd3 {[%emt 0:00:04]} Bxh4 {[%emt 0:00:08]} 40. Rxd5 {[%emt 0:00:03]} Bxf2+ {[%emt 0:00:02]} 41. Kxf2 {[%emt 0:00:01]} Qb6+ {[%emt 0:00:03]} 42. Kf1 {[%emt 0:00:02]} Qa6+ {[%emt 0:00:05]} 43. Qd3+ {[%emt 0:00:01]} 1-0

[Event "FIDE Online Olympiad Div 2 Pool A 2020"]
[Site "Online"]
[Date "2020.08.15"]
[Round "1"]
[White "Sultana Sharmin, Shirin"]
[Black "Osmanodja, Filiz"]
[Result "0-1"]
[ECO "E12"]
[WhiteElo "1956"]
[BlackElo "2168"]
[Annotator "broadcasts"]
[PlyCount "70"]
[EventDate "2020.08.14"]
[EventType "team-tourn"]
[TimeControl "900+5"]

1. d4 {[%emt 0:00:25]} Nf6 {[%emt 0:00:05]} 2. c4 {[%emt 0:00:06]} e6 {[%emt 0:00:01]} 3. Nc3 {[%emt 0:00:02]} Bb4 {[%emt 0:00:02]} 4. Nf3 {[%emt 0:00:04]} b6 {[%emt 0:00:07]} 5. Bg5 {[%emt 0:00:26]} Bb7 {[%emt 0:00:22]} 6. e3 {[%emt 0:00:03]} Bxc3+ {[%emt 0:00:15]} 7. bxc3 {[%emt 0:00:02]} d6 {[%emt 0:00:01]} 8. Be2 {[%emt 0:00:54]} Nbd7 {[%emt 0:00:05]} 9. Qc2 {[%emt 0:00:22]} Nf8 {[%emt 0:00:24]} 10. c5 {[%emt 0:03:48]} Ng6 {[%emt 0:01:22]} 11. cxd6 {[%emt 0:00:15]} cxd6 {[%emt 0:00:22]} 12. Qa4+ {[%emt 0:01:03]} Kf8 {[%emt 0:00:12]} 13. Qa3 {[%emt 0:00:05]} h6 {[%emt 0:00:57]} 14. Bxf6 {[%emt 0:00:09]} gxf6 {[%emt 0:00:00]} 15. c4 {[%emt 0:01:29]} Kg7 {[%emt 0:00:28]} 16. O-O {[%emt 0:00:07]} Kh7 {[%emt 0:01:42]} 17. Rfd1 {[%emt 0:00:21]} Rg8 {[%emt 0:00:26]} 18. d5 {[%emt 0:01:20]} e5 {[%emt 0:00:48]} 19. Qd3 {[%emt 0:02:10]} Bc8 {[%emt 0:03:42]} 20. Nh4 {[%emt 0:00:57]} Kh8 {[%emt 0:02:43]} 21. Nxg6+ {[%emt 0:00:28]} Rxg6 {[%emt 0:00:04]} 22. Bh5 {[%emt 0:00:50]} Rg7 {[%emt 0:00:04]} 23. f4 {[%emt 0:00:35]} f5 {[%emt 0:00:33]} 24. fxe5 {[%emt 0:00:09]} dxe5 {[%emt 0:01:23]} 25. e4 {[%emt 0:00:18]} Qg5 {[%emt 0:00:08]} 26. Bf3 {[%emt 0:00:04]} fxe4 {[%emt 0:00:12]} 27. Qxe4 {[%emt 0:00:04]} Bh3 {[%emt 0:00:23]} 28. Qe2 {[%emt 0:00:24]} Rag8 {[%emt 0:00:04]} 29. Rd2 {[%emt 0:00:13]} f5 {[%emt 0:00:09]} 30. Kh1 {[%emt 0:00:06]} e4 {[%emt 0:00:02]} 31. Bxe4 {[%emt 0:00:03]} fxe4 {[%emt 0:00:03]} 32. Rf1 {[%emt 0:00:04]} e3 {[%emt 0:00:07]} 33. Rc2 {[%emt 0:00:08]} Bxg2+ {[%emt 0:00:03]} 34. Qxg2 {[%emt 0:00:11]} Qxg2+ {[%emt 0:00:00]} 35. Rxg2 {[%emt 0:00:01]} Rxg2 {[%emt 0:00:00]} 0-1

[Event "FIDE Online Olympiad Div 2 Pool A 2020"]
[Site "Online"]
[Date "2020.08.15"]
[Round "1"]
[White "Ahmed, Walijah"]
[Black "Schneider, Jana"]
[Result "0-1"]
[ECO "C77"]
[WhiteElo "1642"]
[BlackElo "2305"]
[Annotator "broadcasts"]
[PlyCount "128"]
[EventDate "2020.08.14"]
[EventType "team-tourn"]
[TimeControl "900+5"]

1. e4 {[%emt 0:00:04]} e5 {[%emt 0:00:03]} 2. Nf3 {[%emt 0:00:04]} Nc6 {[%emt 0:00:02]} 3. Bb5 {[%emt 0:00:03]} a6 {[%emt 0:00:02]} 4. Ba4 {[%emt 0:00:02]} Nf6 {[%emt 0:00:03]} 5. O-O {[%emt 0:00:04]} b5 {[%emt 0:00:09]} 6. Bb3 {[%emt 0:00:04]} Bc5 {[%emt 0:00:02]} 7. Nc3 {[%emt 0:00:57]} d6 {[%emt 0:00:33]} 8. Nd5 {[%emt 0:00:13]} Na5 {[%emt 0:02:16]} 9. d4 {[%emt 0:03:12]} Nxb3 {[%emt 0:00:22]} 10. axb3 {[%emt 0:00:07]} exd4 {[%emt 0:00:03]} 11. Nxd4 {[%emt 0:00:07]} Nxd5 {[%emt 0:00:59]} 12. exd5 {[%emt 0:01:16]} O-O {[%emt 0:00:17]} 13. c3 {[%emt 0:02:20]} Qh4 {[%emt 0:01:14]} 14. Nf3 {[%emt 0:02:08]} Qh5 {[%emt 0:00:54]} 15. b4 {[%emt 0:01:06]} Bb6 {[%emt 0:00:07]} 16. Re1 {[%emt 0:01:33]} Bb7 {[%emt 0:00:26]} 17. Be3 {[%emt 0:00:12]} Bxe3 {[%emt 0:00:16]} 18. Rxe3 {[%emt 0:00:01]} Bxd5 {[%emt 0:00:13]} 19. Nd4 {[%emt 0:00:13]} Qxd1+ {[%emt 0:00:32]} 20. Rxd1 {[%emt 0:00:02]} Rae8 {[%emt 0:01:34]} 21. Rde1 {[%emt 0:00:44]} Rxe3 {[%emt 0:00:07]} 22. Rxe3 {[%emt 0:00:01]} Bb7 {[%emt 0:01:14]} 23. Re7 {[%emt 0:00:07]} Rc8 {[%emt 0:00:03]} 24. f3 {[%emt 0:00:28]} Kf8 {[%emt 0:00:04]} 25. Re1 {[%emt 0:00:41]} Re8 {[%emt 0:00:06]} 26. Kf2 {[%emt 0:00:06]} Rxe1 {[%emt 0:00:07]} 27. Kxe1 {[%emt 0:00:01]} Ke7 {[%emt 0:00:12]} 28. Ke2 {[%emt 0:00:03]} Kf6 {[%emt 0:00:03]} 29. Ke3 {[%emt 0:00:02]} Bd5 {[%emt 0:00:24]} 30. h4 {[%emt 0:00:28]} c5 {[%emt 0:00:39]} 31. Ne2 {[%emt 0:00:07]} Bc6 {[%emt 0:01:22]} 32. Nf4 {[%emt 0:00:07]} Ke5 {[%emt 0:00:24]} 33. Nd3+ {[%emt 0:00:04]} Kd5 {[%emt 0:00:04]} 34. b3 {[%emt 0:00:20]} Bb7 {[%emt 0:00:56]} 35. Nf4+ {[%emt 0:00:08]} Kc6 {[%emt 0:00:03]} 36. Nh5 {[%emt 0:00:12]} g6 {[%emt 0:00:02]} 37. Nf6 {[%emt 0:00:01]} h5 {[%emt 0:00:01]} 38. Ne4 {[%emt 0:00:08]} Kc7 {[%emt 0:00:15]} 39. Ng5 {[%emt 0:00:04]} Bd5 {[%emt 0:00:03]} 40. bxc5 {[%emt 0:00:17]} dxc5 {[%emt 0:00:03]} 41. b4 {[%emt 0:00:01]} cxb4 {[%emt 0:00:05]} 42. cxb4 {[%emt 0:00:01]} Kb6 {[%emt 0:00:08]} 43. Kd4 {[%emt 0:00:01]} Bc4 {[%emt 0:00:06]} 44. Ne4 {[%emt 0:00:05]} a5 {[%emt 0:00:01]} 45. bxa5+ {[%emt 0:00:15]} Kxa5 {[%emt 0:00:02]} 46. Kc3 {[%emt 0:00:09]} Ka4 {[%emt 0:00:09]} 47. Nd6 {[%emt 0:00:03]} Ka3 {[%emt 0:00:10]} 48. Nxc4+ {[%emt 0:00:03]} bxc4 {[%emt 0:00:03]} 49. Kxc4 {[%emt 0:00:01]} Kb2 {[%emt 0:00:01]} 50. g4 {[%emt 0:00:04]} Kc2 {[%emt 0:00:06]} 51. Kd4 {[%emt 0:00:01]} Kd2 {[%emt 0:00:01]} 52. Ke4 {[%emt 0:00:01]} Ke2 {[%emt 0:00:01]} 53. Kf4 {[%emt 0:00:14]} f6 {[%emt 0:00:07]} 54. g5 {[%emt 0:00:11]} f5 {[%emt 0:00:02]} 55. Kg3 {[%emt 0:00:06]} Ke3 {[%emt 0:00:03]} 56. Kg2 {[%emt 0:00:13]} f4 {[%emt 0:00:01]} 57. Kh3 {[%emt 0:00:04]} Kxf3 {[%emt 0:00:01]} 58. Kh2 {[%emt 0:00:01]} Ke2 {[%emt 0:00:01]} 59. Kg1 {[%emt 0:00:02]} f3 {[%emt 0:00:01]} 60. Kh2 {[%emt 0:00:00]} f2 {[%emt 0:00:01]} 61. Kg3 {[%emt 0:00:06]} f1=Q {[%emt 0:00:02]} 62. Kh2 {[%emt 0:00:01]} Qf4+ {[%emt 0:00:05]} 63. Kg2 {[%emt 0:00:02]} Qg4+ {[%emt 0:00:01]} 64. Kh2 {[%emt 0:00:04]} Kf2 {[%emt 0:00:02]} 0-1

[Event "FIDE Online Olympiad Div 2 Pool A 2020"]
[Site "Online"]
[Date "2020.08.15"]
[Round "2"]
[White "Fridman, Daniel"]
[Black "Atabayev, Saparmyrat"]
[Result "1/2-1/2"]
[ECO "E11"]
[WhiteElo "2551"]
[BlackElo "2386"]
[Annotator "broadcasts RC"]
[PlyCount "117"]
[EventDate "2020.08.14"]
[EventType "team-tourn"]
[TimeControl "900+5"]

1. d4 {[%emt 0:00:06]} d5 {[%emt 0:00:04]} 2. Nf3 {[%emt 0:00:02]} Nf6 {[%emt 0:00:02]} 3. c4 {[%emt 0:00:01]} e6 {[%emt 0:00:02]} 4. g3 {[%emt 0:00:03]} Bb4+ {[%emt 0:00:02]} 5. Bd2 {[%emt 0:00:03]} Be7 {[%emt 0:00:02]} 6. Bg2 {[%emt 0:00:01]} O-O {[%emt 0:00:02]} 7. O-O {[%emt 0:00:01]} dxc4 {[%emt 0:00:01]} 8. Qc2 {[%emt 0:00:13]} a6 {[%emt 0:00:04]} 9. a4 {[%emt 0:00:34]} Bd7 {[%emt 0:00:09]} 10. Ne5 {[%emt 0:01:21]} Bc6 {[%emt 0:00:43]} 11. Nxc6 {[%emt 0:00:23]} Nxc6 {[%emt 0:00:01]} 12. e3 {[%emt 0:00:32]} a5 {[%emt 0:00:42]} 13. Bxc6 {[%emt 0:01:28]} bxc6 {[%emt 0:00:03]} 14. Qxc4 {[%emt 0:00:02]} Qb8 {[%emt 0:03:49]} 15. Qc2 {[%emt 0:02:02]} Qb7 {[%emt 0:01:01]} 16. Na3 {[%emt 0:00:05]} Bxa3 {[%emt 0:02:03]} 17. Rxa3 {[%emt 0:00:04]} Rfb8 {[%emt 0:00:09]} 18. Rb1 {[%emt 0:03:44]} Ra6 {[%emt 0:00:17]} 19. Rc3 {[%emt 0:00:18]} Nd7 {[%emt 0:01:37]} 20. Rc4 {[%emt 0:00:14]} c5 {[%emt 0:00:43]} 21. Bc3 {[%emt 0:00:15]} cxd4 {[%emt 0:01:00]} 22. Bxd4 {[%emt 0:00:09]} c5 {[%emt 0:00:13]} 23. Bc3 {[%emt 0:00:37]} Rd6 {[%emt 0:00:10]} 24. Rd1 {[%emt 0:01:17]} Rxd1+ {[%emt 0:00:25]} 25. Qxd1 {[%emt 0:00:00]} Qd5 {[%emt 0:00:02]} 26. Qe2 {[%emt 0:01:06]} Ne5 {[%emt 0:00:23]} 27. Bxe5 {[%emt 0:00:04]} Qxe5 {[%emt 0:00:00]} 28. Qc2 {[%emt 0:00:01]} Rc8 {[%emt 0:00:30]} 29. Qd2 {[%emt 0:00:24]} Qc7 {[%emt 0:00:08]} 30. Qc3 {[%emt 0:00:05]} h5 {[%emt 0:00:33]} 31. h4 {[%emt 0:00:08]} Qb6 {[%emt 0:00:31]} 32. g4 {[%emt 0:00:41]} Qd8 {[%emt 0:00:11]} 33. gxh5 {[%emt 0:00:31]} Qd1+ {[%emt 0:00:02]} 34. Kg2 {[%emt 0:00:02]} Qxh5 {[%emt 0:00:04]} 35. Qd3 {[%emt 0:00:13]} Qd5+ {[%emt 0:00:25]} 36. Qxd5 {[%emt 0:00:02]} exd5 {[%emt 0:00:01]} 37. Rc3 {[%emt 0:00:02]} c4 {[%emt 0:00:33]} 38. b3 {[%emt 0:00:03]} Kh7 {[%emt 0:00:10]} 39. Kf3 {[%emt 0:00:04]} Kg6 {[%emt 0:00:12]} 40. Kf4 {[%emt 0:00:27]} Rb8 {[%emt 0:00:20]} 41. bxc4 {[%emt 0:00:05]} Rb4 {[%emt 0:00:01]} 42. e4 {[%emt 0:00:31]} dxc4 {[%emt 0:00:06]} 43. Rg3+ {[%emt 0:00:02]} Kh6 {[%emt 0:00:04]} 44. Ke5 {[%emt 0:00:04]} Rxa4 {[%emt 0:00:04]} 45. Kd5 {[%emt 0:00:01]} Ra2 {[%emt 0:00:05]} 46. f4 {[%emt 0:00:05]} Rf2 {[%emt 0:00:12]} 47. f5 {[%emt 0:00:03]} Rf4 {[%emt 0:00:02]} 48. Rc3 {[%emt 0:00:06]} Rxh4 {[%emt 0:00:11]} 49. Rxc4 {[%emt 0:00:02]} g5 {[%emt 0:00:24]} 50. fxg6 {[%emt 0:00:09]} Kxg6 {[%emt 0:00:01]} 51. Rc6+ {[%emt 0:00:04]} Kg7 {[%emt 0:00:19]} 52. Ra6 {[%emt 0:00:13]} f6 {[%emt 0:00:02]} 53. e5 {[%emt 0:00:05]} fxe5 {[%emt 0:00:08]} 54. Kxe5 {[%emt 0:00:02]} Kf7 {[%emt 0:00:04]} 55. Kd5 {[%emt 0:00:01]} Ke7 {[%emt 0:00:04]} 56. Kc5 {[%emt 0:00:01]} a4 {[%emt 0:00:01]} 57. Kb5 {[%emt 0:00:02]} Kd7 {[%emt 0:00:01]} 58. Rxa4 {[%emt 0:00:02]} Rxa4 {[%emt 0:00:00]} 59. Kxa4 {[%emt 0:00:00]} 1/2-1/2

[Event "FIDE Online Olympiad Div 2 Pool A 2020"]
[Site "Online"]
[Date "2020.08.15"]
[Round "2"]
[White "Atabayev, Yusup"]
[Black "Wagner, Dennis"]
[Result "0-1"]
[ECO "C44"]
[WhiteElo "2337"]
[BlackElo "2227"]
[Annotator "broadcasts"]
[PlyCount "102"]
[EventDate "2020.08.14"]
[EventType "team-tourn"]
[TimeControl "900+5"]

1. e4 {[%emt 0:00:07]} e5 {[%emt 0:00:04]} 2. Nf3 {[%emt 0:00:05]} Nc6 {[%emt 0:00:02]} 3. d4 {[%emt 0:00:00]} exd4 {[%emt 0:00:02]} 4. Bc4 {[%emt 0:00:02]} Bc5 {[%emt 0:00:05]} 5. O-O {[%emt 0:00:03]} d6 {[%emt 0:00:10]} 6. c3 {[%emt 0:00:04]} Bg4 {[%emt 0:00:08]} 7. Qb3 {[%emt 0:00:02]} Bxf3 {[%emt 0:00:11]} 8. Bxf7+ {[%emt 0:00:05]} Kf8 {[%emt 0:00:01]} 9. gxf3 {[%emt 0:00:05]} dxc3 {[%emt 0:00:29]} 10. Bxg8 {[%emt 0:00:19]} Rxg8 {[%emt 0:00:01]} 11. Nxc3 {[%emt 0:01:19]} Nd4 {[%emt 0:01:19]} 12. Qd1 {[%emt 0:00:03]} Qf6 {[%emt 0:02:50]} 13. f4 {[%emt 0:00:25]} g5 {[%emt 0:00:02]} 14. Qh5 {[%emt 0:02:53]} gxf4+ {[%emt 0:00:55]} 15. Kh1 {[%emt 0:00:02]} Qg7 {[%emt 0:03:30]} 16. Qh3 {[%emt 0:00:16]} Qg4 {[%emt 0:00:04]} 17. Qxg4 {[%emt 0:02:03]} Rxg4 {[%emt 0:00:00]} 18. Nd5 {[%emt 0:00:03]} Ne6 {[%emt 0:02:21]} 19. f3 {[%emt 0:01:35]} Rh4 {[%emt 0:00:04]} 20. Bd2 {[%emt 0:00:22]} Kf7 {[%emt 0:00:10]} 21. Be1 {[%emt 0:00:21]} Rh5 {[%emt 0:00:35]} 22. Bd2 {[%emt 0:00:02]} Rh4 {[%emt 0:00:43]} 23. Be1 {[%emt 0:00:02]} Rh5 {[%emt 0:00:39]} 24. Bd2 {[%emt 0:00:01]} Rg8 {[%emt 0:01:09]} 25. Nxf4 {[%emt 0:00:22]} Nxf4 {[%emt 0:00:02]} 26. Bxf4 {[%emt 0:00:00]} a5 {[%emt 0:00:24]} 27. Rae1 {[%emt 0:00:19]} a4 {[%emt 0:00:24]} 28. Be3 {[%emt 0:00:18]} Bxe3 {[%emt 0:00:12]} 29. Rxe3 {[%emt 0:00:00]} Rc5 {[%emt 0:00:00]} 30. Re2 {[%emt 0:00:05]} Rc4 {[%emt 0:00:03]} 31. a3 {[%emt 0:00:16]} b5 {[%emt 0:00:03]} 32. Rg1 {[%emt 0:00:12]} Rxg1+ {[%emt 0:00:04]} 33. Kxg1 {[%emt 0:00:00]} c5 {[%emt 0:00:24]} 34. Kf2 {[%emt 0:00:18]} b4 {[%emt 0:00:03]} 35. axb4 {[%emt 0:00:01]} cxb4 {[%emt 0:00:00]} 36. Ke3 {[%emt 0:00:12]} a3 {[%emt 0:00:01]} 37. bxa3 {[%emt 0:00:02]} bxa3 {[%emt 0:00:01]} 38. Ra2 {[%emt 0:00:01]} Ra4 {[%emt 0:00:02]} 39. f4 {[%emt 0:00:34]} Ke6 {[%emt 0:00:02]} 40. Kf3 {[%emt 0:00:08]} d5 {[%emt 0:00:07]} 41. exd5+ {[%emt 0:00:01]} Kxd5 {[%emt 0:00:03]} 42. Kg4 {[%emt 0:00:12]} Kc4 {[%emt 0:00:04]} 43. Kg5 {[%emt 0:00:09]} Kb3 {[%emt 0:00:01]} 44. Ra1 {[%emt 0:00:03]} Kb2 {[%emt 0:00:08]} 45. Rf1 {[%emt 0:00:14]} a2 {[%emt 0:00:02]} 46. f5 {[%emt 0:01:37]} a1=Q {[%emt 0:00:03]} 47. Rxa1 {[%emt 0:00:02]} Rxa1 {[%emt 0:00:00]} 48. h4 {[%emt 0:00:06]} Kc3 {[%emt 0:00:55]} 49. Kf6 {[%emt 0:00:26]} Kd4 {[%emt 0:00:06]} 50. Ke6 {[%emt 0:00:06]} Ra6+ {[%emt 0:00:04]} 51. Kf7 {[%emt 0:00:02]} Ke5 {[%emt 0:00:02]} 0-1

[Event "FIDE Online Olympiad Div 2 Pool A 2020"]
[Site "Online"]
[Date "2020.08.15"]
[Round "2"]
[White "Schneider, Jana"]
[Black "Mekanova, Annagozel"]
[Result "1-0"]
[ECO "B12"]
[WhiteElo "2313"]
[BlackElo "1772"]
[Annotator "broadcasts"]
[PlyCount "87"]
[EventDate "2020.08.14"]
[EventType "team-tourn"]
[TimeControl "900+5"]

1. e4 {[%emt 0:00:02]} c6 {[%emt 0:00:05]} 2. d4 {[%emt 0:00:02]} d5 {[%emt 0:00:02]} 3. e5 {[%emt 0:00:01]} Bf5 {[%emt 0:00:03]} 4. h4 {[%emt 0:00:02]} h6 {[%emt 0:00:04]} 5. g4 {[%emt 0:00:04]} Be4 {[%emt 0:00:17]} 6. f3 {[%emt 0:00:03]} Bh7 {[%emt 0:00:01]} 7. e6 {[%emt 0:00:02]} Qd6 {[%emt 0:00:38]} 8. exf7+ {[%emt 0:00:05]} Kxf7 {[%emt 0:00:02]} 9. f4 {[%emt 0:00:01]} e6 {[%emt 0:00:37]} 10. Nf3 {[%emt 0:00:09]} Nd7 {[%emt 0:00:41]} 11. Ne5+ {[%emt 0:00:10]} Ke8 {[%emt 0:00:43]} 12. Bd3 {[%emt 0:00:10]} Bxd3 {[%emt 0:00:03]} 13. Qxd3 {[%emt 0:00:02]} Nxe5 {[%emt 0:00:03]} 14. fxe5 {[%emt 0:00:03]} Qb4+ {[%emt 0:00:19]} 15. Nc3 {[%emt 0:02:40]} Ne7 {[%emt 0:00:15]} 16. Rf1 {[%emt 0:00:13]} Kd7 {[%emt 0:00:45]} 17. Bd2 {[%emt 0:00:22]} Qc4 {[%emt 0:00:35]} 18. Qxc4 {[%emt 0:03:04]} dxc4 {[%emt 0:00:04]} 19. Ne4 {[%emt 0:00:03]} b6 {[%emt 0:02:26]} 20. Rf7 {[%emt 0:00:16]} c5 {[%emt 0:00:28]} 21. dxc5 {[%emt 0:00:18]} Kc6 {[%emt 0:00:02]} 22. cxb6 {[%emt 0:00:42]} axb6 {[%emt 0:00:02]} 23. Bb4 {[%emt 0:02:58]} Ng6 {[%emt 0:00:27]} 24. Bd6 {[%emt 0:00:29]} Nxh4 {[%emt 0:00:12]} 25. O-O-O {[%emt 0:01:03]} Rd8 {[%emt 0:01:33]} 26. Rc7+ {[%emt 0:00:50]} Kb5 {[%emt 0:00:02]} 27. Nc3+ {[%emt 0:00:25]} Ka6 {[%emt 0:00:05]} 28. a4 {[%emt 0:00:02]} Bxd6 {[%emt 0:00:15]} 29. exd6 {[%emt 0:00:02]} Nf3 {[%emt 0:00:53]} 30. Nb5 {[%emt 0:00:26]} Ka5 {[%emt 0:00:09]} 31. d7 {[%emt 0:00:26]} Ne5 {[%emt 0:00:07]} 32. Ra7+ {[%emt 0:00:07]} Kb4 {[%emt 0:00:06]} 33. c3+ {[%emt 0:00:01]} Kb3 {[%emt 0:01:17]} 34. Nd4+ {[%emt 0:00:05]} Ka2 {[%emt 0:00:04]} 35. Nxe6 {[%emt 0:00:01]} Nxg4 {[%emt 0:01:17]} 36. Nxd8 {[%emt 0:00:05]} Rxd8 {[%emt 0:00:03]} 37. Re1 {[%emt 0:00:09]} Nf6 {[%emt 0:00:36]} 38. Re7 {[%emt 0:00:05]} g5 {[%emt 0:01:28]} 39. a5 {[%emt 0:00:03]} b5 {[%emt 0:00:12]} 40. a6 {[%emt 0:00:04]} g4 {[%emt 0:00:46]} 41. Rb7 {[%emt 0:00:03]} g3 {[%emt 0:00:02]} 42. Rxb5 {[%emt 0:00:11]} Rg8 {[%emt 0:00:32]} 43. Kc2 {[%emt 0:00:08]} g2 {[%emt 0:00:04]} 44. Ra5# {[%emt 0:00:01]} 1-0

[Event "FIDE Online Olympiad Div 2 Pool A 2020"]
[Site "Online"]
[Date "2020.08.14"]
[Round "2"]
[White "Hamonde"]
[Black "garcho08"]
[Result "1/2-1/2"]
[ECO "A11"]
[WhiteElo "2310"]
[BlackElo "1469"]
[Annotator "NA RC"]
[PlyCount "42"]
[EventDate "2020.08.14"]
[EventType "team-tourn"]
[TimeControl "900+5"]

1. Nf3 {[%emt 0:00:01]} Nf6 {[%emt 0:00:03]} 2. g3 {[%emt 0:00:02]} d5 {[%emt 0:00:02]} 3. Bg2 {[%emt 0:00:01]} c6 {[%emt 0:00:00]} 4. O-O {[%emt 0:00:02]} Bf5 {[%emt 0:00:01]} 5. c4 {[%emt 0:00:01]} e6 {[%emt 0:00:01]} 6. cxd5 {[%emt 0:00:02]} exd5 {[%emt 0:00:08]} 7. d3 {[%emt 0:00:02]} Be7 {[%emt 0:00:01]} 8. Qb3 {[%emt 0:00:05]} Qb6 {[%emt 0:00:06]} 9. Qc2 {[%emt 0:00:05]} O-O {[%emt 0:00:09]} 10. Nc3 {[%emt 0:00:29]} Nbd7 {[%emt 0:00:45]} 11. e4 {[%emt 0:00:51]} Bg6 {[%emt 0:00:31]} 12. Nh4 {[%emt 0:00:50]} dxe4 {[%emt 0:00:16]} 13. dxe4 {[%emt 0:00:09]} Rfe8 {[%emt 0:00:07]} 14. Bf4 {[%emt 0:01:26]} Nf8 {[%emt 0:01:06]} 15. Rad1 {[%emt 0:04:05]} Rad8 {[%emt 0:00:37]} 16. Be3 {[%emt 0:01:05]} Qa5 {[%emt 0:00:09]} 17. Nxg6 {[%emt 0:00:24]} hxg6 {[%emt 0:00:33]} 18. a3 {[%emt 0:00:57]} Ne6 {[%emt 0:01:08]} 19. h3 {[%emt 0:00:12]} Rxd1 {[%emt 0:00:07]} 20. Rxd1 {[%emt 0:00:01]} Rd8 {[%emt 0:00:22]} 21. Rxd8+ {[%emt 0:00:31]} Bxd8 {[%emt 0:00:04]} 1/2-1/2